[Event "Titled Tuesday Blitz June 13 Early 2023"]
[White "Vakhlamov, Igor L."]
[Black "Hajiyev, Kanan"]
[WhiteFideId "24126748"]
[BlackFideId "13404148"]
[WhiteElo "2407"]
[BlackElo "2115"]
[Result "1/2-1/2"]
[Round "9"]
[TimeControl "180+2"]
[Date "2023.06.13"]
[WhiteClock "0:00:29"]
[BlackClock "0:00:19"]
[Board "34"]

1. e4 {[%clk 0:03:00]}  c6 {[%clk 0:02:58]} 2. d4 {[%clk 0:03:00]}  d5 {[%clk 0:02:59]} 3. exd5 {[%clk 0:03:00]}  cxd5 {[%clk 0:03:00]} 4. c4 {[%clk 0:03:01]}  Nf6 {[%clk 0:03:00]} 5. Nc3 {[%clk 0:03:01]}  e6 {[%clk 0:03:00]} 6. c5 {[%clk 0:03:01]}  Be7 {[%clk 0:02:59]} 7. Bb5+ {[%clk 0:03:02]}  Bd7 {[%clk 0:02:58]} 8. Bxd7+ {[%clk 0:03:02]}  Qxd7 {[%clk 0:02:55]} 9. Nf3 {[%clk 0:02:57]}  Nc6 {[%clk 0:02:55]} 10. Rb1 {[%clk 0:02:56]}  a5 {[%clk 0:02:48]} 11. a3 {[%clk 0:02:56]}  Ne4 {[%clk 0:02:49]} 12. Na4 {[%clk 0:02:52]}  Qc7 {[%clk 0:02:40]} 13. O-O {[%clk 0:02:48]}  O-O {[%clk 0:02:39]} 14. Be3 {[%clk 0:02:29]}  f5 {[%clk 0:02:38]} 15. Qc1 {[%clk 0:02:28]}  f4 {[%clk 0:02:31]} 16. Bd2 {[%clk 0:02:26]}  g5 {[%clk 0:02:23]} 17. h3 {[%clk 0:02:07]}  h5 {[%clk 0:02:10]} 18. Nb6 {[%clk 0:01:39]}  Rae8 {[%clk 0:02:09]} 19. Qd1 {[%clk 0:01:28]}  e5 {[%clk 0:01:54]} 20. Nxd5 {[%clk 0:01:23]}  Qd7 {[%clk 0:01:49]} 21. Nxe7+ {[%clk 0:01:21]}  Rxe7 {[%clk 0:01:48]} 22. Bc3 {[%clk 0:01:01]}  g4 {[%clk 0:01:20]} 23. Nxe5 {[%clk 0:00:58]}  Nxe5 {[%clk 0:01:20]} 24. dxe5 {[%clk 0:00:59]}  Nxc3 {[%clk 0:01:18]} 25. bxc3 {[%clk 0:00:56]}  Qf5 {[%clk 0:01:07]} 26. hxg4 {[%clk 0:00:51]}  hxg4 {[%clk 0:01:06]} 27. Qd5+ {[%clk 0:00:51]}  Rff7 {[%clk 0:01:01]} 28. Rfe1 {[%clk 0:00:29]}  g3 {[%clk 0:00:57]} 29. Qf3 {[%clk 0:00:23]}  Rxe5 {[%clk 0:00:49]} 30. fxg3 {[%clk 0:00:17]}  Rxe1+ {[%clk 0:00:46]} 31. Rxe1 {[%clk 0:00:18]}  Qxc5+ {[%clk 0:00:46]} 32. Qf2 {[%clk 0:00:16]}  Qxf2+ {[%clk 0:00:07]} 33. Kxf2 {[%clk 0:00:17]}  fxg3+ {[%clk 0:00:07]} 34. Kxg3 {[%clk 0:00:18]}  Rc7 {[%clk 0:00:08]} 35. Re3 {[%clk 0:00:12]}  Rc4 {[%clk 0:00:08]} 36. Kf2 {[%clk 0:00:12]}  Ra4 {[%clk 0:00:08]} 37. Re7 {[%clk 0:00:13]}  b5 {[%clk 0:00:07]} 38. Rb7 {[%clk 0:00:13]}  Rxa3 {[%clk 0:00:07]} 39. Rxb5 {[%clk 0:00:13]}  Rxc3 {[%clk 0:00:08]} 40. Rxa5 {[%clk 0:00:14]}  Kg7 {[%clk 0:00:07]} 41. Rg5+ {[%clk 0:00:14]}  Kf6 {[%clk 0:00:07]} 42. Rg3 {[%clk 0:00:15]}  Rxg3 {[%clk 0:00:06]} 43. Kxg3 {[%clk 0:00:16]}  Kg5 {[%clk 0:00:07]} 44. Kf3 {[%clk 0:00:16]}  Kf5 {[%clk 0:00:07]} 45. Kg3 {[%clk 0:00:17]}  Kg5 {[%clk 0:00:08]} 46. Kh3 {[%clk 0:00:18]}  Kh5 {[%clk 0:00:08]} 47. Kh2 {[%clk 0:00:17]}  Kg4 {[%clk 0:00:09]} 48. Kg1 {[%clk 0:00:18]}  Kg3 {[%clk 0:00:09]} 49. Kf1 {[%clk 0:00:19]}  Kg4 {[%clk 0:00:09]} 50. Kf2 {[%clk 0:00:20]}  Kf4 {[%clk 0:00:10]} 51. g3+ {[%clk 0:00:20]}  Kg4 {[%clk 0:00:10]} 52. Kg2 {[%clk 0:00:21]}  Kg5 {[%clk 0:00:10]} 53. Kf3 {[%clk 0:00:22]}  Kf5 {[%clk 0:00:11]} 54. g4+ {[%clk 0:00:23]}  Kg5 {[%clk 0:00:11]} 55. Kg3 {[%clk 0:00:23]}  Kg6 {[%clk 0:00:12]} 56. Kf4 {[%clk 0:00:24]}  Kf6 {[%clk 0:00:13]} 57. g5+ {[%clk 0:00:24]}  Kg6 {[%clk 0:00:13]} 58. Kg4 {[%clk 0:00:25]}  Kg7 {[%clk 0:00:14]} 59. Kh4 {[%clk 0:00:26]}  Kg6 {[%clk 0:00:14]} 60. Kg4 {[%clk 0:00:27]}  Kg7 {[%clk 0:00:14]} 61. Kf5 {[%clk 0:00:28]}  Kf7 {[%clk 0:00:15]} 62. g6+ {[%clk 0:00:28]}  Kg7 {[%clk 0:00:15]} 63. Kg5 {[%clk 0:00:29]}  Kg8 {[%clk 0:00:16]} 64. Kh5 {[%clk 0:00:30]}  Kg7 {[%clk 0:00:16]} 65. Kg5 {[%clk 0:00:30]}  Kg8 {[%clk 0:00:17]} 66. Kf6 {[%clk 0:00:31]}  Kf8 {[%clk 0:00:17]} 67. Ke5 {[%clk 0:00:29]}  Kg7 {[%clk 0:00:18]} 68. Kf4 {[%clk 0:00:29]}  Kxg6 {[%clk 0:00:19]} 1/2-1/2


[Site "https://www.chess.com"]

[Event "Titled Tuesday Blitz June 13 Early 2023"]
[White "Rahman, Masruri"]
[Black "Safin, Robert"]
[WhiteFideId "7101163"]
[BlackFideId "34189120"]
[WhiteElo "2256"]
[BlackElo "2341"]
[Result "0-1"]
[Round "9"]
[TimeControl "180+2"]
[Date "2023.06.13"]
[WhiteClock "0:00:00"]
[BlackClock "0:00:07"]
[Board "35"]

1. d4 {[%clk 0:02:58]}  Nf6 {[%clk 0:02:59]} 2. Bf4 {[%clk 0:02:58]}  d5 {[%clk 0:02:59]} 3. e3 {[%clk 0:02:59]}  c5 {[%clk 0:02:58]} 4. Nc3 {[%clk 0:02:59]}  a6 {[%clk 0:02:52]} 5. Nf3 {[%clk 0:02:58]}  cxd4 {[%clk 0:02:45]} 6. exd4 {[%clk 0:02:57]}  Nc6 {[%clk 0:02:45]} 7. Ne5 {[%clk 0:02:55]}  Bf5 {[%clk 0:02:40]} 8. Nxc6 {[%clk 0:02:55]}  bxc6 {[%clk 0:02:41]} 9. Bd3 {[%clk 0:02:54]}  Bxd3 {[%clk 0:02:32]} 10. Qxd3 {[%clk 0:02:55]}  e6 {[%clk 0:02:33]} 11. O-O {[%clk 0:02:54]}  c5 {[%clk 0:02:31]} 12. dxc5 {[%clk 0:02:53]}  Bxc5 {[%clk 0:02:31]} 13. Qg3 {[%clk 0:02:38]}  Nh5 {[%clk 0:02:21]} 14. Qg4 {[%clk 0:02:37]}  Nxf4 {[%clk 0:02:21]} 15. Qxf4 {[%clk 0:02:38]}  O-O {[%clk 0:02:21]} 16. Ne2 {[%clk 0:02:23]}  Qb8 {[%clk 0:02:10]} 17. Rab1 {[%clk 0:01:56]}  Qxf4 {[%clk 0:02:02]} 18. Nxf4 {[%clk 0:01:57]}  Rfc8 {[%clk 0:02:02]} 19. Nd3 {[%clk 0:01:54]}  Bd6 {[%clk 0:02:00]} 20. c3 {[%clk 0:01:53]}  a5 {[%clk 0:01:56]} 21. Rfd1 {[%clk 0:01:50]}  Kf8 {[%clk 0:01:54]} 22. Kf1 {[%clk 0:01:48]}  Ke7 {[%clk 0:01:54]} 23. h3 {[%clk 0:01:48]}  h5 {[%clk 0:01:54]} 24. Ke2 {[%clk 0:01:48]}  g5 {[%clk 0:01:51]} 25. Rbc1 {[%clk 0:01:46]}  Rab8 {[%clk 0:01:45]} 26. Rc2 {[%clk 0:01:46]}  Rc4 {[%clk 0:01:40]} 27. b3 {[%clk 0:01:38]}  Rc6 {[%clk 0:01:22]} 28. c4 {[%clk 0:01:10]}  Rbc8 {[%clk 0:01:16]} 29. c5 {[%clk 0:01:09]}  Bxc5 {[%clk 0:01:13]} 30. Rdc1 {[%clk 0:01:09]}  Kd6 {[%clk 0:01:13]} 31. f3 {[%clk 0:01:06]}  Bd4 {[%clk 0:01:08]} 32. Rxc6+ {[%clk 0:01:00]}  Rxc6 {[%clk 0:01:09]} 33. Rxc6+ {[%clk 0:00:58]}  Kxc6 {[%clk 0:01:09]} 34. a4 {[%clk 0:00:54]}  h4 {[%clk 0:01:02]} 35. b4 {[%clk 0:00:33]}  axb4 {[%clk 0:00:59]} 36. Nxb4+ {[%clk 0:00:33]}  Kc5 {[%clk 0:00:58]} 37. Na6+ {[%clk 0:00:25]}  Kb6 {[%clk 0:00:43]} 38. Nb8 {[%clk 0:00:25]}  Bg7 {[%clk 0:00:18]} 39. Kd3 {[%clk 0:00:20]}  Kb7 {[%clk 0:00:11]} 40. Nd7 {[%clk 0:00:19]}  Kc6 {[%clk 0:00:10]} 41. Nb8+ {[%clk 0:00:19]}  Kc7 {[%clk 0:00:10]} 42. Na6+ {[%clk 0:00:19]}  Kb6 {[%clk 0:00:10]} 43. Nb8 {[%clk 0:00:19]}  f5 {[%clk 0:00:09]} 44. Nd7+ {[%clk 0:00:13]}  Kc6 {[%clk 0:00:07]} 45. Nb8+ {[%clk 0:00:13]}  Kc7 {[%clk 0:00:07]} 46. Na6+ {[%clk 0:00:13]}  Kb6 {[%clk 0:00:08]} 47. Nb8 {[%clk 0:00:13]}  e5 {[%clk 0:00:08]} 48. Nd7+ {[%clk 0:00:12]}  Kc7 {[%clk 0:00:07]} 49. Nb8 {[%clk 0:00:00]}  Kxb8 {[%clk 0:00:07]} 0-1


[Site "https://www.chess.com"]

[Event "Titled Tuesday Blitz June 13 Early 2023"]
[White "Jovic, Stanoje"]
[Black "Maximov, Dmitry"]
[WhiteFideId "905020"]
[BlackFideId "14105659"]
[WhiteElo "2236"]
[BlackElo "2494"]
[Result "0-1"]
[Round "9"]
[TimeControl "180+2"]
[Date "2023.06.13"]
[WhiteClock "0:00:00"]
[BlackClock "0:00:56"]
[Board "37"]

1. c4 {[%clk 0:03:00]}  Nf6 {[%clk 0:02:59]} 2. g3 {[%clk 0:03:01]}  g6 {[%clk 0:03:00]} 3. Bg2 {[%clk 0:03:01]}  Bg7 {[%clk 0:03:01]} 4. Nc3 {[%clk 0:03:01]}  O-O {[%clk 0:03:01]} 5. Nf3 {[%clk 0:03:01]}  d6 {[%clk 0:03:02]} 6. O-O {[%clk 0:03:02]}  e5 {[%clk 0:03:02]} 7. d3 {[%clk 0:03:02]}  Nh5 {[%clk 0:03:02]} 8. e4 {[%clk 0:03:01]}  c5 {[%clk 0:02:59]} 9. Ne1 {[%clk 0:02:57]}  Nc6 {[%clk 0:02:56]} 10. Nc2 {[%clk 0:02:57]}  f5 {[%clk 0:02:44]} 11. exf5 {[%clk 0:02:54]}  Nd4 {[%clk 0:02:35]} 12. fxg6 {[%clk 0:02:49]}  hxg6 {[%clk 0:02:33]} 13. Ne3 {[%clk 0:02:48]}  Nf4 {[%clk 0:02:26]} 14. Be4 {[%clk 0:02:36]}  Bh3 {[%clk 0:02:15]} 15. gxf4 {[%clk 0:02:31]}  exf4 {[%clk 0:02:15]} 16. Ned5 {[%clk 0:02:12]}  Be5 {[%clk 0:02:01]} 17. Kh1 {[%clk 0:02:05]}  f3 {[%clk 0:01:54]} 18. Rg1 {[%clk 0:01:59]}  Bg2+ {[%clk 0:01:35]} 19. Rxg2 {[%clk 0:01:59]}  fxg2+ {[%clk 0:01:35]} 20. Kxg2 {[%clk 0:01:59]}  Rxf2+ {[%clk 0:01:24]} 21. Kxf2 {[%clk 0:01:50]}  Qh4+ {[%clk 0:01:24]} 22. Ke3 {[%clk 0:01:04]}  Qh6+ {[%clk 0:01:13]} 23. Kf2 {[%clk 0:00:57]}  Rf8+ {[%clk 0:01:06]} 24. Bf3 {[%clk 0:00:49]}  Qxh2+ {[%clk 0:01:03]} 25. Ke3 {[%clk 0:00:36]}  Nc2+ {[%clk 0:00:57]} 26. Qxc2 {[%clk 0:00:00]}  Bd4+ {[%clk 0:00:56]} 0-1


[Site "https://www.chess.com"]

[Event "Titled Tuesday Blitz June 13 Early 2023"]
[White "Ivanchuk, Vasyl"]
[Black "Shubenkova, Veronika"]
[WhiteFideId "14100010"]
[BlackFideId "44124040"]
[WhiteElo "2710"]
[BlackElo "2060"]
[Result "1-0"]
[Round "9"]
[TimeControl "180+2"]
[Date "2023.06.13"]
[WhiteClock "0:01:02"]
[BlackClock "0:00:00"]
[Board "38"]

1. d4 {[%clk 0:02:58]}  d5 {[%clk 0:02:59]} 2. c4 {[%clk 0:02:58]}  e6 {[%clk 0:02:58]} 3. Nf3 {[%clk 0:02:57]}  Nf6 {[%clk 0:02:59]} 4. e3 {[%clk 0:02:57]}  c6 {[%clk 0:02:57]} 5. Bd3 {[%clk 0:02:55]}  Be7 {[%clk 0:02:56]} 6. O-O {[%clk 0:02:55]}  Nbd7 {[%clk 0:02:55]} 7. b3 {[%clk 0:02:54]}  O-O {[%clk 0:02:55]} 8. Bb2 {[%clk 0:02:54]}  Ne4 {[%clk 0:02:56]} 9. Qe2 {[%clk 0:02:49]}  f5 {[%clk 0:02:55]} 10. Ba3 {[%clk 0:02:49]}  g5 {[%clk 0:02:48]} 11. Bxe7 {[%clk 0:02:43]}  Qxe7 {[%clk 0:02:47]} 12. Nfd2 {[%clk 0:02:43]}  g4 {[%clk 0:02:43]} 13. f3 {[%clk 0:02:38]}  gxf3 {[%clk 0:02:43]} 14. gxf3 {[%clk 0:02:38]}  Nxd2 {[%clk 0:02:43]} 15. Nxd2 {[%clk 0:02:39]}  Kh8 {[%clk 0:02:44]} 16. f4 {[%clk 0:02:38]}  Nf6 {[%clk 0:02:43]} 17. c5 {[%clk 0:02:35]}  b6 {[%clk 0:02:39]} 18. Rac1 {[%clk 0:02:35]}  Bd7 {[%clk 0:02:39]} 19. Nf3 {[%clk 0:02:33]}  Be8 {[%clk 0:02:32]} 20. Ne5 {[%clk 0:02:33]}  Bh5 {[%clk 0:02:30]} 21. Qf2 {[%clk 0:02:30]}  bxc5 {[%clk 0:02:23]} 22. Rxc5 {[%clk 0:02:29]}  Rg8+ {[%clk 0:02:20]} 23. Kh1 {[%clk 0:02:29]}  Ne4 {[%clk 0:02:14]} 24. Bxe4 {[%clk 0:02:29]}  fxe4 {[%clk 0:02:14]} 25. Rxc6 {[%clk 0:02:27]}  Rg7 {[%clk 0:02:11]} 26. Rcc1 {[%clk 0:02:23]}  Rag8 {[%clk 0:01:58]} 27. Rg1 {[%clk 0:02:23]}  Qa3 {[%clk 0:01:29]} 28. h3 {[%clk 0:02:15]}  Rg3 {[%clk 0:00:40]} 29. Kh2 {[%clk 0:02:11]}  Rxg1 {[%clk 0:00:27]} 30. Rxg1 {[%clk 0:02:10]}  Rxg1 {[%clk 0:00:25]} 31. Kxg1 {[%clk 0:02:11]}  Qc1+ {[%clk 0:00:24]} 32. Kh2 {[%clk 0:02:10]}  h6 {[%clk 0:00:22]} 33. Kg3 {[%clk 0:02:04]}  Qc7 {[%clk 0:00:17]} 34. b4 {[%clk 0:01:42]}  Qe7 {[%clk 0:00:11]} 35. Qd2 {[%clk 0:01:32]}  Qg7+ {[%clk 0:00:09]} 36. Kh2 {[%clk 0:01:32]}  Qe7 {[%clk 0:00:07]} 37. a4 {[%clk 0:01:26]}  Qh4 {[%clk 0:00:05]} 38. b5 {[%clk 0:01:25]}  Kh7 {[%clk 0:00:04]} 39. a5 {[%clk 0:01:24]}  Qd8 {[%clk 0:00:03]} 40. b6 {[%clk 0:01:11]}  axb6 {[%clk 0:00:03]} 41. a6 {[%clk 0:01:12]}  b5 {[%clk 0:00:02]} 42. a7 {[%clk 0:01:10]}  Qc7 {[%clk 0:00:02]} 43. a8=Q {[%clk 0:01:09]}  Bf3 {[%clk 0:00:02]} 44. Qda2 {[%clk 0:01:03]}  Qc1 {[%clk 0:00:00]} 45. Q2a7+ {[%clk 0:01:02]} 1-0


[Site "https://www.chess.com"]

[Event "Titled Tuesday Blitz June 13 Early 2023"]
[White "Belov, Alexei"]
[Black "Vignesh N R"]
[WhiteFideId "4128206"]
[BlackFideId "25012215"]
[WhiteElo "2626"]
[BlackElo "2415"]
[Result "1/2-1/2"]
[Round "9"]
[TimeControl "180+2"]
[Date "2023.06.13"]
[WhiteClock "0:00:07"]
[BlackClock "0:00:05"]
[Board "40"]

1. e4 {[%clk 0:03:00]}  e5 {[%clk 0:02:58]} 2. Nf3 {[%clk 0:03:00]}  Nc6 {[%clk 0:02:57]} 3. Bb5 {[%clk 0:03:00]}  a6 {[%clk 0:02:57]} 4. Ba4 {[%clk 0:03:01]}  Nf6 {[%clk 0:02:57]} 5. d4 {[%clk 0:03:01]}  b5 {[%clk 0:02:58]} 6. Bb3 {[%clk 0:03:01]}  exd4 {[%clk 0:02:53]} 7. e5 {[%clk 0:02:58]}  Ng4 {[%clk 0:02:21]} 8. O-O {[%clk 0:02:51]}  Bc5 {[%clk 0:02:07]} 9. h3 {[%clk 0:02:44]}  Ngxe5 {[%clk 0:01:42]} 10. Nxe5 {[%clk 0:02:43]}  Nxe5 {[%clk 0:01:43]} 11. Re1 {[%clk 0:02:44]}  d6 {[%clk 0:01:39]} 12. f4 {[%clk 0:02:43]}  d3+ {[%clk 0:01:23]} 13. Be3 {[%clk 0:02:40]}  O-O {[%clk 0:00:51]} 14. fxe5 {[%clk 0:02:35]}  Qg5 {[%clk 0:00:44]} 15. Bxc5 {[%clk 0:02:27]}  dxc5 {[%clk 0:00:45]} 16. Bd5 {[%clk 0:02:27]}  dxc2 {[%clk 0:00:35]} 17. Qxc2 {[%clk 0:02:24]}  Bf5 {[%clk 0:00:34]} 18. Qxc5 {[%clk 0:02:19]}  c6 {[%clk 0:00:30]} 19. Bf3 {[%clk 0:02:05]}  Bxh3 {[%clk 0:00:29]} 20. Nc3 {[%clk 0:02:05]}  Rad8 {[%clk 0:00:29]} 21. Ne4 {[%clk 0:01:56]}  Qg6 {[%clk 0:00:29]} 22. Rad1 {[%clk 0:01:54]}  h5 {[%clk 0:00:22]} 23. Rd6 {[%clk 0:01:52]}  Be6 {[%clk 0:00:21]} 24. Red1 {[%clk 0:01:42]}  Rde8 {[%clk 0:00:15]} 25. Qe3 {[%clk 0:01:33]}  h4 {[%clk 0:00:13]} 26. Qg5 {[%clk 0:01:28]}  Qxg5 {[%clk 0:00:13]} 27. Nxg5 {[%clk 0:01:28]}  Bxa2 {[%clk 0:00:14]} 28. e6 {[%clk 0:01:18]}  f6 {[%clk 0:00:14]} 29. Bxc6 {[%clk 0:01:07]}  fxg5 {[%clk 0:00:11]} 30. Bxe8 {[%clk 0:01:07]}  Rxe8 {[%clk 0:00:12]} 31. Rd8 {[%clk 0:01:08]}  Kf8 {[%clk 0:00:12]} 32. Rxe8+ {[%clk 0:00:43]}  Kxe8 {[%clk 0:00:13]} 33. Rd7 {[%clk 0:00:43]}  Bxe6 {[%clk 0:00:11]} 34. Rxg7 {[%clk 0:00:43]}  g4 {[%clk 0:00:12]} 35. Ra7 {[%clk 0:00:40]}  Bc8 {[%clk 0:00:11]} 36. Rh7 {[%clk 0:00:32]}  h3 {[%clk 0:00:12]} 37. gxh3 {[%clk 0:00:32]}  gxh3 {[%clk 0:00:13]} 38. Kf2 {[%clk 0:00:33]}  Kd8 {[%clk 0:00:12]} 39. Ke3 {[%clk 0:00:33]}  Bd7 {[%clk 0:00:12]} 40. b4 {[%clk 0:00:33]}  Kc7 {[%clk 0:00:11]} 41. Kd4 {[%clk 0:00:33]}  Kd6 {[%clk 0:00:12]} 42. Rh6+ {[%clk 0:00:32]}  Be6 {[%clk 0:00:13]} 43. Ke4 {[%clk 0:00:32]}  Kd7 {[%clk 0:00:10]} 44. Ke5 {[%clk 0:00:32]}  Bg4 {[%clk 0:00:11]} 45. Rxa6 {[%clk 0:00:29]}  Bf3 {[%clk 0:00:11]} 46. Rh6 {[%clk 0:00:28]}  Bg2 {[%clk 0:00:12]} 47. Kd4 {[%clk 0:00:27]}  Ke7 {[%clk 0:00:12]} 48. Kc5 {[%clk 0:00:27]}  Bf1 {[%clk 0:00:12]} 49. Kd5 {[%clk 0:00:25]}  Kf7 {[%clk 0:00:12]} 50. Ke5 {[%clk 0:00:25]}  Kg7 {[%clk 0:00:13]} 51. Rh4 {[%clk 0:00:24]}  Kg6 {[%clk 0:00:13]} 52. Kf4 {[%clk 0:00:24]}  Bg2 {[%clk 0:00:13]} 53. Kg4 {[%clk 0:00:23]}  Bf1 {[%clk 0:00:13]} 54. Kg3 {[%clk 0:00:22]}  Kg5 {[%clk 0:00:12]} 55. Rh8 {[%clk 0:00:22]}  Bg2 {[%clk 0:00:10]} 56. Re8 {[%clk 0:00:20]}  Kf5 {[%clk 0:00:10]} 57. Rc8 {[%clk 0:00:19]}  Ke4 {[%clk 0:00:08]} 58. Rc5 {[%clk 0:00:19]}  Bf1 {[%clk 0:00:08]} 59. Kf2 {[%clk 0:00:18]}  Bc4 {[%clk 0:00:07]} 60. Rh5 {[%clk 0:00:16]}  h2 {[%clk 0:00:05]} 61. Rxh2 {[%clk 0:00:15]}  Kd3 {[%clk 0:00:05]} 62. Rh3+ {[%clk 0:00:13]}  Kc2 {[%clk 0:00:06]} 63. Ke1 {[%clk 0:00:09]}  Bd3 {[%clk 0:00:05]} 64. Rh4 {[%clk 0:00:08]}  Kc3 {[%clk 0:00:04]} 65. Rh5 {[%clk 0:00:08]}  Bc4 {[%clk 0:00:04]} 66. Rxb5 {[%clk 0:00:08]}  Bxb5 {[%clk 0:00:04]} 67. Kd1 {[%clk 0:00:07]}  Kxb4 {[%clk 0:00:05]} 1/2-1/2


[Site "https://www.chess.com"]

[Event "Titled Tuesday Blitz June 13 Early 2023"]
[White "Atakhan, Abtin"]
[Black "Ezat, Mohamed"]
[WhiteFideId "22502203"]
[BlackFideId "10600906"]
[WhiteElo "2008"]
[BlackElo "2372"]
[Result "1-0"]
[Round "9"]
[TimeControl "180+2"]
[Date "2023.06.13"]
[WhiteClock "0:00:16"]
[BlackClock "0:00:56"]
[Board "42"]

1. d4 {[%clk 0:03:00]}  Nf6 {[%clk 0:02:52]} 2. c4 {[%clk 0:03:01]}  e6 {[%clk 0:02:52]} 3. Nf3 {[%clk 0:03:01]}  Bb4+ {[%clk 0:02:51]} 4. Bd2 {[%clk 0:03:01]}  Bxd2+ {[%clk 0:02:50]} 5. Qxd2 {[%clk 0:03:01]}  d6 {[%clk 0:02:50]} 6. Nc3 {[%clk 0:03:01]}  O-O {[%clk 0:02:50]} 7. g3 {[%clk 0:02:57]}  Qe7 {[%clk 0:02:50]} 8. Bg2 {[%clk 0:02:56]}  e5 {[%clk 0:02:49]} 9. O-O {[%clk 0:02:54]}  e4 {[%clk 0:02:46]} 10. Ng5 {[%clk 0:02:49]}  Bf5 {[%clk 0:02:46]} 11. Qf4 {[%clk 0:02:49]}  Bg6 {[%clk 0:02:42]} 12. Ngxe4 {[%clk 0:02:48]}  Nxe4 {[%clk 0:02:42]} 13. Nxe4 {[%clk 0:02:46]}  Nc6 {[%clk 0:02:42]} 14. Nc3 {[%clk 0:02:45]}  Rab8 {[%clk 0:02:26]} 15. Qd2 {[%clk 0:02:41]}  h5 {[%clk 0:02:23]} 16. h4 {[%clk 0:02:41]}  Qd8 {[%clk 0:02:18]} 17. Nd5 {[%clk 0:02:38]}  Bf5 {[%clk 0:02:16]} 18. Nf4 {[%clk 0:02:36]}  g6 {[%clk 0:02:16]} 19. Nd5 {[%clk 0:02:31]}  Be6 {[%clk 0:02:15]} 20. Rac1 {[%clk 0:02:21]}  Rc8 {[%clk 0:02:09]} 21. Nf4 {[%clk 0:02:12]}  Bg4 {[%clk 0:02:07]} 22. b4 {[%clk 0:02:07]}  Qf6 {[%clk 0:02:04]} 23. Rfd1 {[%clk 0:01:53]}  Rfe8 {[%clk 0:01:54]} 24. b5 {[%clk 0:01:52]}  Nd8 {[%clk 0:01:50]} 25. Nd5 {[%clk 0:01:50]}  Qg7 {[%clk 0:01:50]} 26. Qg5 {[%clk 0:01:43]}  Ne6 {[%clk 0:01:49]} 27. Nf6+ {[%clk 0:01:41]}  Kh8 {[%clk 0:01:44]} 28. Nxe8 {[%clk 0:01:40]}  Rxe8 {[%clk 0:01:43]} 29. Qd2 {[%clk 0:01:37]}  Nd8 {[%clk 0:01:42]} 30. Re1 {[%clk 0:01:35]}  c6 {[%clk 0:01:39]} 31. d5 {[%clk 0:01:24]}  c5 {[%clk 0:01:38]} 32. e4 {[%clk 0:01:21]}  f6 {[%clk 0:01:37]} 33. Qa5 {[%clk 0:01:00]}  b6 {[%clk 0:01:36]} 34. Qa3 {[%clk 0:00:58]}  Qc7 {[%clk 0:01:33]} 35. Qc3 {[%clk 0:00:55]}  Kg7 {[%clk 0:01:32]} 36. Re3 {[%clk 0:00:52]}  Nf7 {[%clk 0:01:32]} 37. Rce1 {[%clk 0:00:53]}  Ne5 {[%clk 0:01:31]} 38. f3 {[%clk 0:00:53]}  Bc8 {[%clk 0:01:29]} 39. a4 {[%clk 0:00:48]}  Kh7 {[%clk 0:01:29]} 40. g4 {[%clk 0:00:40]}  hxg4 {[%clk 0:01:27]} 41. f4 {[%clk 0:00:41]}  Nd7 {[%clk 0:01:25]} 42. Rg3 {[%clk 0:00:40]}  f5 {[%clk 0:01:21]} 43. exf5 {[%clk 0:00:37]}  Qd8 {[%clk 0:01:17]} 44. fxg6+ {[%clk 0:00:36]}  Kh6 {[%clk 0:01:17]} 45. Rxg4 {[%clk 0:00:32]}  Nf6 {[%clk 0:01:15]} 46. Rxe8 {[%clk 0:00:29]}  Qxe8 {[%clk 0:01:11]} 47. Qxf6 {[%clk 0:00:27]}  Bxg4 {[%clk 0:01:11]} 48. Qg5+ {[%clk 0:00:21]}  Kg7 {[%clk 0:01:11]} 49. Qxg4 {[%clk 0:00:21]}  Qe3+ {[%clk 0:01:11]} 50. Kh2 {[%clk 0:00:21]}  Qf2 {[%clk 0:01:05]} 51. Qg5 {[%clk 0:00:21]}  Qe3 {[%clk 0:01:04]} 52. h5 {[%clk 0:00:21]}  Kg8 {[%clk 0:01:03]} 53. h6 {[%clk 0:00:21]}  Qe8 {[%clk 0:01:00]} 54. Qf6 {[%clk 0:00:21]}  Qd7 {[%clk 0:00:58]} 55. Bh3 {[%clk 0:00:18]}  a5 {[%clk 0:00:56]} 56. Be6+ {[%clk 0:00:16]}  Qxe6 {[%clk 0:00:56]} 57. h7# {[%clk 0:00:16]} 1-0


[Site "https://www.chess.com"]

[Event "Titled Tuesday Blitz June 13 Early 2023"]
[White "Martinez Ramirez, Lennis"]
[Black "Ahmad, Khagan"]
[WhiteFideId "3509079"]
[BlackFideId "13431552"]
[WhiteElo "2410"]
[BlackElo "2209"]
[Result "0-1"]
[Round "9"]
[TimeControl "180+2"]
[Date "2023.06.13"]
[WhiteClock "0:00:02"]
[BlackClock "0:01:29"]
[Board "46"]

1. Nf3 {[%clk 0:03:00]}  d5 {[%clk 0:02:48]} 2. c4 {[%clk 0:03:01]}  c6 {[%clk 0:02:47]} 3. b3 {[%clk 0:02:58]}  Nf6 {[%clk 0:02:47]} 4. Bb2 {[%clk 0:02:58]}  Bg4 {[%clk 0:02:47]} 5. e3 {[%clk 0:02:58]}  Nbd7 {[%clk 0:02:47]} 6. Be2 {[%clk 0:02:58]}  e6 {[%clk 0:02:47]} 7. h3 {[%clk 0:02:58]}  Bxf3 {[%clk 0:02:46]} 8. Bxf3 {[%clk 0:02:58]}  Bd6 {[%clk 0:02:47]} 9. d3 {[%clk 0:02:58]}  Bb4+ {[%clk 0:02:43]} 10. Nd2 {[%clk 0:02:58]}  Qa5 {[%clk 0:02:43]} 11. a3 {[%clk 0:02:57]}  Bxd2+ {[%clk 0:02:42]} 12. Qxd2 {[%clk 0:02:58]}  Qxd2+ {[%clk 0:02:42]} 13. Kxd2 {[%clk 0:02:59]}  e5 {[%clk 0:02:43]} 14. Be2 {[%clk 0:02:55]}  Ke7 {[%clk 0:02:43]} 15. g4 {[%clk 0:02:53]}  Rhd8 {[%clk 0:02:35]} 16. g5 {[%clk 0:02:52]}  Ne8 {[%clk 0:02:34]} 17. h4 {[%clk 0:02:51]}  Nc5 {[%clk 0:02:34]} 18. Kc2 {[%clk 0:02:50]}  dxc4 {[%clk 0:02:25]} 19. bxc4 {[%clk 0:02:47]}  f6 {[%clk 0:02:25]} 20. Rag1 {[%clk 0:02:39]}  Rd7 {[%clk 0:02:10]} 21. h5 {[%clk 0:02:26]}  Rad8 {[%clk 0:02:07]} 22. h6 {[%clk 0:02:25]}  g6 {[%clk 0:02:07]} 23. gxf6+ {[%clk 0:02:24]}  Nxf6 {[%clk 0:02:08]} 24. Bxe5 {[%clk 0:02:09]}  Nxd3 {[%clk 0:02:08]} 25. Bd4 {[%clk 0:02:09]}  Nxf2 {[%clk 0:02:02]} 26. Rh4 {[%clk 0:01:48]}  N2e4 {[%clk 0:02:00]} 27. Bd3 {[%clk 0:01:31]}  c5 {[%clk 0:01:43]} 28. Bxe4 {[%clk 0:00:08]}  cxd4 {[%clk 0:01:39]} 29. Bf3 {[%clk 0:00:01]}  dxe3 {[%clk 0:01:35]} 30. Re1 {[%clk 0:00:01]}  Rd2+ {[%clk 0:01:35]} 31. Kc3 {[%clk 0:00:01]}  R8d3+ {[%clk 0:01:33]} 32. Kb4 {[%clk 0:00:02]}  Rb2+ {[%clk 0:01:32]} 33. Ka4 {[%clk 0:00:02]}  Nd7 {[%clk 0:01:30]} 34. Re4+ {[%clk 0:00:01]}  Kd8 {[%clk 0:01:29]} 35. R4xe3 {[%clk 0:00:02]}  Nc5+ {[%clk 0:01:28]} 36. Ka5 {[%clk 0:00:02]}  b6# {[%clk 0:01:29]} 0-1


[Site "https://www.chess.com"]